Cogmind - Beta 16.1 @@@ ROGUE MODE // 2026.03.07 @ 20:32:00 Player: OniAn Result: Self-destructed Performance ------------- Evolutions (1) 500 Regions Visited (3) 600 Robots Destroyed (45) 225 Value Destroyed (1168) 1168 Prototype IDs (2) 40 Alien Tech Used (0) 0 Bonus (61) 61 TOTAL SCORE: 2594 Bonus ------- Follower Combat Kills 61 Cogmind --------- Core Integrity 64/400 Matter 300/300 Energy 100/100 System Corruption 10% Temperature Cool (0) Movement Rolling (90) Location -9/Materials Parts ------- > --- POWER (1) -------- (None) > --- PROPULSION (2) --- Armored Wheel > --- UTILITY (4) ------ Small Storage Unit > --- WEAPON (2) ------- Particle Gun Light Assault Rifle > --- INVENTORY (8) ---- Cesium-ion Thruster Cesium-ion Thruster Cesium-ion Thruster Cesium-ion Thruster Datajack Peak State ------------ > --- POWER ------------ Deuterium Engine > --- PROPULSION ------- Armored Wheel Armored Wheel > --- UTILITY ---------- Small Storage Unit > --- WEAPON ----------- Grenade Launcher Mini Grenade Launcher > --- INVENTORY -------- Armored Wheel Armored Wheel Cesium-ion Thruster Cesium-ion Thruster Cesium-ion Thruster Cesium-ion Thruster Slug Cannon Datajack [Rating: 13] Favorites ----------- Power Ion Engine Engine Ion Engine Propulsion Armored Wheel Wheel Armored Wheel Utility Small Storage Unit Storage Small Storage Unit Protection Light Armor Plating Weapon Mini Grenade Launcher Energy Gun EM Pulse Gun Ballistic Gun Light Assault Rifle Ballistic Cannon Slug Cannon Launcher Mini Grenade Launcher Build | -11 -10 -10 -9 ------- Run | Yrd Mat Min Mat Slots Evolved 2 | . . . 2 Power . | . . . . Propulsion . | . . . . Utility 2 | . . . 2 Weapon . | . . . . Parts Attached 22 | 6 7 1 8 Power 3 | 1 1 . 1 Engine 3 | 1 1 . 1 Core . | . . . . Reactor . | . . . . Propulsion 7 | 2 3 . 2 Treads . | . . . . Leg . | . . . . Wheel 7 | 2 3 . 2 Hover . | . . . . Flight . | . . . . Utility 2 | 1 1 . . Device . | . . . . Storage 1 | 1 . . . Processor . | . . . . Hackware . | . . . . Protection 1 | . 1 . . Artifact . | . . . . Weapon 10 | 2 2 1 5 Energy Gun 6 | 2 1 . 3 Energy Cannon . | . . . . Ballistic Gun 1 | . . . 1 Ballistic Cannon 1 | . . . 1 Launcher 2 | . 1 1 . Special Weapon . | . . . . Impact Weapon . | . . . . Slashing Weapon . | . . . . Piercing Weapon . | . . . . Special Melee Weapon . | . . . . Unidentified Prototypes 2 | . . . 2 Parts Lost 15 | . 2 3 10 Power 2 | . . 1 1 Propulsion 3 | . . . 3 Utility 1 | . . 1 . Weapon 9 | . 2 1 6 Highest Loss Streak 4 | . 1 2 4 To Critical Strikes . | . . . . Average Backups 6 | . 3 6 7 Power . | . . . . Propulsion 2 | . . 2 5 Utility . | . . . . Weapon 2 | . . 3 . Tool/Special . | . . . . Unused Backups 8 | . . . 8 Power . | . . . . Propulsion 4 | . . . 4 Utility . | . . . . Weapon 3 | . . . 3 Tool/Special 1 | . . . 1 Average Slot Usage (%) 77 | . 85 82 51 Engine 9 | . 14 10 2 Wheel 26 | . 28 28 20 Storage 13 | . 14 14 11 Protection 1 | . 1 1 . Energy Gun 5 | . 20 1 7 Launcher 20 | . 6 26 8 Peak Build Rating 13 | 6 10 10 13 Average Rating 9 | 4 7 9 10 On Entrance 6 | . 6 10 9 Avg Prop Armor Cover (%) . | . . . . Naked Turns . | . . . . Heaviest Build 18 | 12 15 15 18 Greatest Support 26 | 26 26 24 24 Greatest Overweight (x) 1 | . . . 1 Average Overweight (x) . | . . . . Largest Inventory Capacity 8 | 8 8 8 8 Average Capacity 7 | 6 8 8 8 Most Carried 8 | . 7 7 8 Average Carried 6 | . 3 6 7 Final Capacity 8 | 8 8 8 8 Final Carried 7 | . 7 7 5 Class Distribution -------------------- 100% | Mutant Dominant Class ---------------- Mutant | -10/Materials Mutant | -10/Mines Mutant | -9/Materials Resources | -11 -10 -10 -9 ----------- Run | Yrd Mat Min Mat Matter Collected 819 | 42 272 148 357 Remotely . | . . . . Salvage Created 1082 | . 358 156 568 Parts 77 | . 20 21 36 Haulers Intercepted 2 | . 1 . 1 Recyclers Shooed 1 | . . . 1 Parts Field Recycled . | . . . . Retrieved Matter . | . . . . Parts Self-Destructed . | . . . . Prevented . | . . . . Parts Restored . | . . . . Kills | -11 -10 -10 -9 ------- Run | Yrd Mat Min Mat Combat Hostiles Destroyed 33 | . 10 7 16 Guns 10 | . 2 1 7 Cannons 5 | . . . 5 AOE 17 | . 7 6 4 Classes Destroyed 9 | . 5 3 1 Worker 4 | . 1 1 2 Builder 4 | . . 3 1 Tunneler 1 | . . 1 . Hauler 2 | . 1 . 1 Watcher 1 | . 1 . . Swarmer 8 | . 3 3 2 Grunt 19 | . 7 2 10 Duelist 1 | . . . 1 Sentry 5 | . . 2 3 Best Kill Streak 6 | . 5 6 5 Combat Bots Only 5 | . 3 3 5 Max Kills in Single Turn 3 | . 3 3 3 Gunslinging . | . . . . Exploded 2 | . 2 2 2 Melee . | . . . . Uniques/NPCs Destroyed . | . . . . Combat | -11 -10 -10 -9 -------- Run | Yrd Mat Min Mat Hostile Shots Fired 184 | . 41 25 118 Missed 60 | . 12 5 43 Hits 124 | . 29 20 75 Melee 1 | . . . 1 Projectile 123 | . 29 20 74 Critical Strikes 1 | . . 1 . Damage Taken 1888 | . 315 425 1148 Core 459 | . 58 65 336 Absorbed by Shields . | . . . . Core Remaining (%) 75 | 100 . 50 . Volleys Fired 93 | . 24 13 56 Largest 2 | . 2 2 2 Hottest 101 | . 80 70 101 Shots Fired 131 | . 42 21 68 Gun 79 | . 35 5 39 Cannon 21 | . . . 21 Launcher 31 | . 7 16 8 Special . | . . . . Kinetic 24 | . . . 24 Thermal 40 | . 9 5 26 Explosive 31 | . 7 16 8 Electromagnetic 36 | . 26 . 10 Robot Hit Streak 8 | . 5 4 8 Robot Miss Streak 5 | . 3 4 5 Penetration Max 1 | . . . 1 Secondary Targets . | . . . . Shots Hit Robots 74 | . 23 10 41 Core Hits 61 | . 15 19 27 Critical Kills . | . . . . Critical Parts Destroyed 4 | . . . 4 Critical Strikes 5 | . . . 5 Burn 1 | . . . 1 Destroy 4 | . . . 4 Melee Attacks . | . . . . Impact . | . . . . Slashing . | . . . . Piercing . | . . . . Sneak Attacks . | . . . . Combat Hostiles . | . . . . Follow-up Attacks . | . . . . Damage Inflicted 3083 | . 912 770 1401 Guns 737 | . 258 22 457 Cannons 402 | . . . 402 Explosions 1917 | . 654 739 524 Melee . | . . . . Ramming 27 | . . 9 18 Kinetic 417 | . . . 417 Thermal 589 | . 87 22 480 Explosive 1703 | . 627 739 337 Electromagnetic 347 | . 198 . 149 Impact . | . . . . Slashing . | . . . . Piercing . | . . . . Highest Corruption 10 | . . . 10 Average Corruption 7 | . . . 7 Corruption Purged . | . . . . Corruption Blocked . | . . . . Effects 13 | . . . 13 Message Errors 2 | . . . 2 Matter Fused 4 | . . . 4 Heat Flow Errors 2 | . . . 2 Weapon Failures 5 | . . . 5 Overload Shots . | . . . . Overflow Damage 74 | . 44 12 18 Projectiles 1 | . . . 1 Explosions 73 | . 44 12 17 Melee . | . . . . Knockbacks 1 | . . . 1 Impact . | . . . . Kinetic 1 | . . . 1 Secondary . | . . . . Self-Inflicted Damage 221 | . . 182 39 Shots 8 | . . 7 1 Rammed 5 | . . 1 4 Targets Rammed 5 | . . 1 4 Kicked . | . . . . Crushed . | . . . . Highest Temperature 268 | . 192 93 268 Average Temperature 53 | . 63 41 49 Received Heat Transfer 504 | . 156 78 270 Siege Activations . | . . . . Martial Activations . | . . . . Shielding Activations . | . . . . Robots Disrupted . | . . . . Combat Hostiles . | . . . . Robots Corrupted 1 | . 1 . . Combat Hostiles 1 | . 1 . . Parts Fried 2 | . 2 . . Impact Corruptions . | . . . . Robots Melted . | . . . . Combat Hostiles . | . . . . Parts Melted 1 | . . . 1 Heat Transferred 1215 | . 175 50 990 Parts Sabotaged . | . . . . Parts Stolen . | . . . . Parts Stripped . | . . . . Power Chain Reactions 2 | . 1 . 1 Alert | -11 -10 -10 -9 ------- Run | Yrd Mat Min Mat Maximum Alert Level 1 | . . . 1 Low Security (%) 88 | 100 100 100 33 Level 1 11 | . . . 66 Level 2 . | . . . . Level 3 . | . . . . Level 4 . | . . . . Level 5 . | . . . . High Security . | . . . . Max Security . | . . . . Peak Influence 396 | . 145 150 396 Initial 53 | . . 53 14 Average 63 | . 34 33 209 Influence Increases 1443 | . 343 330 770 Destroy 0b10 Robot/C 760 | . 200 140 420 Destroy 0b10 Robot/NC 60 | . 15 25 20 Destroy Leader 176 | . 44 20 112 Allied During Kill 30 | . . 8 22 Disable Machine 120 | . 30 15 75 Destroy Structure 222 | . 54 92 76 Partial Spotted 15 | . . . 15 Lose Combat Pursuer 60 | . . 30 30 Influence Decreases 1063 | . 206 429 428 Entered New Map 108 | . . 84 24 Time Decay 745 | . 186 315 244 Lost Part 150 | . 20 30 100 Lost Ally 60 | . . . 60 Squads Dispatched 5 | . 2 . 3 Investigation 1 | . 1 . . Extermination . | . . . . Reinforcement 4 | . 1 . 3 Assault . | . . . . Garrison . | . . . . Intercept . | . . . . Searches Triggered . | . . . . Construction Impeded 1 | . . . 1 Haulers Reinforced . | . . . . Active Scanning Responses . | . . . . Cargo Convoy Interrupts . | . . . . Stealth | -11 -10 -10 -9 --------- Run | Yrd Mat Min Mat Distress Signals 2 | . . . 2 Communications Jammed . | . . . . Distress Signals . | . . . . Times Spotted 52 | . 14 9 29 Peak Tracking Total 6 | . 5 3 6 Tactical Retreats 3 | . . 1 2 Traps | -11 -10 -10 -9 ------- Run | Yrd Mat Min Mat Traps Triggered 1 | . 1 . . Indirectly . | . . . . Trap Hack Attempts . | . . . . Triggered . | . . . . Disarmed . | . . . . Reprogrammed . | . . . . Reused . | . . . . Traps Extracted . | . . . . Installed . | . . . . Triggered . | . . . . Machines | -11 -10 -10 -9 ---------- Run | Yrd Mat Min Mat Machines Disabled 11 | . 3 3 5 Max in Single Turn 3 | . 1 1 3 Machines Repaired . | . . . . Machines Dismantled . | . . . . Machines Sabotaged . | . . . . Overloaded Fab Kills . | . . . . Hacking | -11 -10 -10 -9 --------- Run | Yrd Mat Min Mat Machines Accessed . | . . . . Terminals . | . . . . Fabricators . | . . . . Repair Stations . | . . . . Recycling Units . | . . . . Scanalyzers . | . . . . Garrison Access . | . . . . Total Hacks . | . . . . Successful . | . . . . Failed . | . . . . Catastrophic . | . . . . Database Lockouts . | . . . . Manual . | . . . . Terminals . | . . . . Fabricators . | . . . . Repair Stations . | . . . . Recycling Units . | . . . . Scanalyzers . | . . . . Garrison Access . | . . . . Terminal Hacks . | . . . . Fabricator Hacks . | . . . . Repair Station Hacks . | . . . . Recycling Unit Hacks . | . . . . Scanalyzer . | . . . . Garrison Access Hacks . | . . . . Unauthorized Hacks . | . . . . Terminals . | . . . . Fabricators . | . . . . Repair Stations . | . . . . Recycling Units . | . . . . Scanalyzers . | . . . . Garrison Access . | . . . . Data Cores Recovered . | . . . . Used . | . . . . Hacking Detections . | . . . . Full Trace Events . | . . . . Feedback Events . | . . . . Feedback Blocked . | . . . . Robot Schematics Acquired . | . . . . Robots Built . | . . . . Authchips . | . . . . Time . | . . . . Total Robot Build Rating . | . . . . Part Schematics Acquired . | . . . . Parts Built . | . . . . Authchips . | . . . . Time . | . . . . Total Part Build Rating . | . . . . Part Studies Acquired . | . . . . Parts Repaired . | . . . . Time . | . . . . Parts Recycled . | . . . . Recycled Matter . | . . . . Retrieved Matter . | . . . . Retrieved Components . | . . . . Parts Scanalyzed . | . . . . Part Schematics Acquired . | . . . . Parts Damaged . | . . . . Bothacking | -11 -10 -10 -9 ------------ Run | Yrd Mat Min Mat Used RIF Installer . | . . . . Robots Hacked . | . . . . Non-combat . | . . . . Combat . | . . . . Robot Hacks Applied . | . . . . Relay Couplers Released . | . . . . Fabnet Peak Effective % . | . . . . Robots Rewired . | . . . . Allies Hacked . | . . . . Hacks Repelled . | . . . . Allies | -11 -10 -10 -9 -------- Run | Yrd Mat Min Mat Total Allies 3 | . . 3 . Largest Group 3 | . . 3 3 Highest-Rated Group 40 | . . 40 40 Highest-Rated Ally 16 | . . 16 16 Total Orders . | . . . . Ally Attacks 19 | . . . 19 Total Damage 212 | . . . 212 Kills 5 | . . . 5 Allies Corrupted . | . . . . Allies Melted . | . . . . Intel | -11 -10 -10 -9 ------- Run | Yrd Mat Min Mat Active Infowar (turns) . | . . . . Robot Analysis Total . | . . . . Derelict Logs Recovered . | . . . . Drone Launches . | . . . . Drone Recoveries . | . . . . Exploration | -11 -10 -10 -9 ------------- Run | Yrd Mat Min Mat Turns Passed 3363 | 52 498 2233 580 Spaces Moved 2025 | 49 457 1085 434 Core 3 | 2 . . 1 Treads . | . . . . Legs . | . . . . Wheels 2022 | 47 457 1085 433 Hover . | . . . . Flight . | . . . . Fastest Speed 50 | 50 80 90 90 Average Speed 89 | 89 88 90 90 Slowest Speed 100 | 100 90 90 100 Overloaded Moves . | . . . . Propulsion Burnouts . | . . . . Robots Hopped . | . . . . Potential Cave-ins 5 | . . . 5 Cave-ins Triggered 1 | . . . 1 Exploration Rate (%) 49 | 3 61 99 34 Regions Visited 3 Branch Regions 1 Pre-discovered Areas . | . . . . Known Exits Taken . | . . . . Unknown Exits Taken 3 | 1 1 1 . Scrap Searched 2 | . . 2 . Spaces Dug . | . . . . Terrain Destroyed 265 | . 54 135 76 Melee . | . . . . Projectile 5 | . . . 5 AOE 260 | . 54 135 71 Terrain Rammed . | . . . . Walls Destroyed . | . . . . Machines Disabled . | . . . . Actions | -11 -10 -10 -9 --------- Run | Yrd Mat Min Mat Total 3429 | 54 506 2320 549 Wait 1267 | . 8 1220 39 Move 2021 | 48 456 1084 433 Hop . | . . . . Pick Up 12 | . 7 1 4 Fast Attach 15 | 6 3 . 6 Attach 4 | . . 1 3 Detach . | . . . . Swap 4 | . 4 . . Drop 7 | . 4 . 3 Fire 93 | . 24 13 56 Melee . | . . . . Ram 5 | . . 1 4 Kick . | . . . . Crush . | . . . . Escape Stasis 1 | . . . 1 Rewire . | . . . . Trap . | . . . . Miscellaneous . | . . . . Route ------- -11/Scrapyard -10/Materials (discovered 4 exits: [*Mat x2] / [*Min x2]) -10/Mines (discovered 3 exits: [*Mat x2] / [*Sub]) -9/Materials (discovered 1 exit: [*Min]) History --------- Turn | Location | Event 7 | -11/Scrapyard | Discovered new exit (range 16) 53 | -11/Scrapyard | Entered Materials 172 | -10/Materials | Discovered new exit (range 4) 185 | -10/Materials | Discovered new exit (range 12) 300 | -10/Materials | Build established: Mutant 322 | -10/Materials | Discovered new exit (range 11) 522 | -10/Materials | Discovered new exit (range 13) 551 | -10/Materials | Entered Mines 669 | -10/Mines | Discovered new exit (range 10) 958 | -10/Mines | Assisted by bots powering up and referring to "LRC-V3" 1812 | -10/Mines | A weapon hastily lodged in a ceiling crevice suddenly fell to the ground 1864 | -10/Mines | Discovered new exit (range 7) 2288 | -10/Mines | Discovered new exit (range 10) 2784 | -10/Mines | Entered Materials 2784 | -9/Materials | Accompanied by 3 allies 2784 | -9/Materials | Evolved 2 slots: Utility x2 3009 | -9/Materials | Crushed by falling debris 3053 | -9/Materials | Lost 4 parts (1p3w) 3201 | -9/Materials | System corruption reached 10% 3233 | -9/Materials | Lost 4 parts (2n2w) 3239 | -9/Materials | Core integrity fell below 50% 3334 | -9/Materials | Core integrity fell below 20% 3362 | -9/Materials | Discovered new exit (range 12) 3364 | -9/Materials | Self-destructed Last Messages --------------- 03321_ M-13 Machinist repairs K-01 Serf. 03322_ S-10 Pest destroyed. 03322_ K-01 Serf collects debris. 03323_ Acquired 5 matter. 03325_ K-01 Serf collects debris. 03327_ Acquired Lgt. Assault Rifle. 03328_ System corrupted: Matter fused (-8). 03328_ K-01 Serf collects debris. 03329_ Slammed into K-01 Serf. 03331_ Acquired 8 matter. 03331_ System corrupted: Particle Gun failed to cycle. 03332_ Acquired 1 matter. 03337_ Y-45 Defender destroyed. 03338_ Acquired 1 matter. 03338_ K-01 Serf collects debris. 03340_ Slammed into M-13 Machinist. 03341_ K-01 Serf collects debris. 03362_ EXIT=FOUND 03362_ W-16 Scout sends out distress signal. Map ----- +----------------------------------------------------+ | ?????????????????????????????????????????????????? | | ?????????????????????????????????????????????????? | | ?????????????????????????????????????????????????? | | ?????????????????????????????????????????????????? | | ?????????????????????????????????????????????????? | | ?????????????????????????????????????????????????? | | ?????????????????????????????????????????????????? | | ?????????????????????????????????????????????????? | | ?????????????????????????????????????????????????? | | ?????????????????????????????????????????????????? | | ???????????????????????? g??????????????????????? | | ???????????????????????? ??????????????????????? | | ???????????????????????? ??????????????????????? | | ???????????????????????# #?????????????????????? | | ????????????????????? ?# #?????????????????????? | | ????????????????????? ?# #?????????????????????? | | ????????????????????? ?# #?????????????????????? | | ????????????????????? # #?????????????????????? | | ?????????????????????? # #?????????????????????? | | ?????????????????????? / % +?????????????????????? | | ?????????????|"??????? # #?????????????????????? | | ??????? ?? "|"!"?????## ##????????????????????? | | ??????? ?? w##### % #????????????????????? | | ??????? ? #????????????????????? | | ??????? ? < ! #????????????????????? | | ??????? "? ]@ #????????????????????? | | ???????#/## ##### [ #????????????????????? | | ?????? % ###############+#####??????????????????? | | ?????""" ## # %= #??????????????????? | | ???? """ ## # #??????????????????? | | ???# """ ## # #??????????????????? | | ???# ## # #??????????????????? | | ???# """ ## # #??????????????????? | | ???# """ ## = *# #??????????????????? | | ???# """ ## *=|=!# * #??????????????????? | | ???# ## !%=%=%# % #??????????????????? | | #### "" #######+######+###### #????????????????? | | "" # "T ######*=!= #????????????????? | | "" # "" + % !%! ## #????????????????? | | "" # ##### %= ###?????????????????? | | #####+##???# # #?????????????????? | | #???#=#????# # #?????????????????? | | ##+#???#%#??### # #?????????????????? | | #####+### ## # #?????????????????? | | ## !*== # #"#########+#???????? | | ## !=%""" # " ??????? | | ## !=!""" # "" ??????? | | ## == """ # ??????? | | ## """ # ######?????????????? | | ## % # ######## ##?????????????????? | +----------------------------------------------------+ Best States ------------- Heat Dissipation 28 Energy Generation 14 Energy Capacity 275 Matter Stores 300 Matter Capacity 300 Sight Range 16 Terrain Scan Density 10 Armor Coverage 150 Evasion (%) 44 Item Schematics ----------------- None Robot Schematics ------------------ None Fabricated ------------ Nothing Repaired ---------- Nothing Studied --------- None Alien Tech Used ----------------- None Achievements -------------- None Challenges ------------ None Game ------ Seed MetaPropulsionConstruct Manual? 0 Play Time 00:17:51 Cumulative 48.3 hours Start 2026.02.28 @ 01:23:01 End 2026.03.07 @ 20:32:00 Sessions 5 Manual Loads 0 Difficulty Rogue Special Mode None Game No. 64 Rogue 40 Adventurer 24 Explorer 0 Win Type - Total 0 Types 0/0/0/0/0/0/0/0/0/0 Lore% 33 Gallery% 29 Achievement% 23 Wizard Run 0 Options --------- Layout 1 ASCII 0 Keyboard 1 Movement Arrows Keybinds 0 Fullscreen 1 Font 24/Smallcaps Map View 50x35 Zoom Use 0% Tactical HUD 1 Map Filters NONE Filters NONE Steam 1 RUN: 86b84a99-bdb6-415d-9419-1457372f4ca6